bitfinex/quotes_SOLUSD_20241009
["timestamp","ask_amount","ask_price","bid_price","bid_amount"]
[1728499192172,17.7291,141.02,140.94,17.7367]
[1728499192495,7.0931,140.99,140.96,7.0941]
[1728499192870,7.0931,140.99,140.94,87.7367]
[1728499193067,7.0931,140.99,140.95,7.0944]
[1728499193270,7.0934,140.98,140.94,24.8318]
[1728499193465,7.094,140.97,140.94,17.7367]
[1728499193988,7.094,140.97,140.94,24.8319]
[1728499194975,7.094,140.97,140.93,7.0955]
[1728499199676,17.7306,141.0,140.92,17.7393]
[1728499199888,7.0945,140.96,140.93,1.41891048]
[1728499200091,7.0945,140.96,140.93,8.51441048]
[1728499200385,7.0952,140.94,140.93,1.41887573]
[1728499200723,7.0949,140.95,140.92,8.51509272]
[1728499201167,7.0944,140.96,140.92,8.51509272]
[1728499202084,17.7335,140.98,140.92,1.41899272]
[1728499202292,7.0957,140.93,140.9,7.0971]
[1728499202495,7.0957,140.93,140.89,24.8419]
[1728499203196,7.0962,140.92,140.89,24.8419]
[1728499203378,7.0959,140.93,140.89,24.8419]
[1728499203585,7.0953,140.94,140.9,7.097]
[1728499205990,7.0968,140.91,140.88,7.098]
[1728499206295,7.0968,140.91,140.86,109.7648]
[1728499206296,7.0968,140.91,140.87,10.97569325]
[1728499206506,7.0972,140.9,140.87,7.0986]
[1728499206704,15.1244,140.93,140.86,21.62422505]
[1728499206705,7.0978,140.89,140.86,21.62422505]
[1728499207011,7.0978,140.89,140.85,7.9477757]
[1728499207176,7.0983,140.88,140.85,0.8481757]
[1728499207381,7.0988,140.87,140.85,0.8481757]
[1728499208289,17.86629,140.92,140.85,0.8481757]
[1728499208290,20.0,140.91,140.85,0.8481757]
[1728499208495,20.0,140.91,140.85,18.5968757]
[1728499208704,20.0,140.91,140.86,1.4196268]
[1728499208887,20.0,140.92,140.86,1.4196268]
[1728499211011,7.0958,140.93,140.89,24.8409]
[1728499212516,16.564,140.96,140.9,1.41926685]
[1728499212688,7.095,140.95,140.91,7.0963]
[1728499213413,16.564,140.96,140.89,17.7435]
[1728499213579,16.564,140.96,140.9,1.41909439]
[1728499213779,7.0948,140.95,140.91,7.0966]
[1728499214189,7.0952,140.94,140.9,7.097]
[1728499214881,23.9682,140.98,140.9,7.097]
[1728499214882,6.2343,140.98,140.91,1.41909645]
[1728499215183,7.0941,140.97,140.93,7.0955]
[1728499215401,7.0941,140.97,140.94,1.41892032]
[1728499215576,7.0941,140.97,140.93,8.51439955]
[1728499215775,7.0933,140.98,140.94,7.0951]
[1728499215995,7.0933,140.98,140.95,1.41876324]
[1728499216204,7.0937,140.97,140.93,24.8346]
[1728499216381,7.0933,140.98,140.94,8.51398713]
[1728499216982,15.2663,140.99,140.95,7.0943]
[1728499217191,7.0932,140.98,140.94,8.51378713]
[1728499218305,7.0932,140.98,140.94,7.095]
[1728499218498,7.0932,140.98,140.94,8.51379338]
[1728499219187,15.2663,140.99,140.93,17.7391]
[1728499219390,7.0939,140.97,140.93,24.8347]
[1728499220206,7.0939,140.97,140.94,1.41879452]
[1728499220589,7.0929,140.99,140.95,7.0944]
[1728499220804,7.0929,140.99,140.96,1.41867861]
[1728499221994,7.0932,140.98,140.94,7.095]
[1728499222481,6.5825,141.02,140.9,24.839]
[1728499222482,15.2663,140.99,140.9,24.839]
[1728499222785,7.0951,140.95,140.91,7.0965]
[1728499222981,7.0952,140.94,140.91,1.41905284]
[1728499225296,7.0952,140.94,140.91,7.0966]
[1728499225609,7.0959,140.93,140.9,17.742]
[1728499225820,7.0962,140.92,140.89,7.0976]
[1728499225987,7.0968,140.91,140.88,5.29941891]
[1728499226315,15.6018,140.93,140.85,7.3463757]
[1728499226492,7.0977,140.89,140.85,14.4459757]
[1728499226699,7.0977,140.89,140.85,19.74602957]
[1728499227003,7.0974,140.9,140.86,8.5186832]
[1728499227392,7.0974,140.9,140.86,7.0991]
[1728499227591,17.7426,140.91,140.85,0.8481757]
[1728499227796,7.0992,140.86,140.85,0.8481757]
[1728499228101,23.902374,140.89,140.85,0.8481757]
[1728499228303,20.0,140.88,140.85,0.8481757]
[1728499228504,27.0976,140.9,140.86,7.0992]
[1728499228710,27.0976,140.9,140.85,2.2679746]
[1728499228711,20.0,140.9,140.85,2.2679746]
[1728499229124,20.0,140.9,140.85,0.8481757]
[1728499229300,7.0984,140.88,140.85,0.8481757]
[1728499230402,27.0976,140.9,140.85,9.36758701]
[1728499230792,27.0976,140.9,140.86,7.0992]
[1728499231730,7.0967,140.91,140.87,8.5182492]
[1728499232934,15.6018,140.93,140.89,7.0977]
[1728499232935,22.6976,140.93,140.89,7.0977]
[1728499233111,22.6976,140.93,140.89,8.51707091]
[1728499233822,7.0958,140.93,140.89,1.41937091]
[1728499233998,7.0958,140.93,140.89,8.51667091]
[1728499234200,7.0953,140.94,140.9,7.0968]
[1728499234423,7.0953,140.94,140.89,1.41937091]
[1728499234424,7.0957,140.93,140.89,7.0976]
[1728499236223,7.0973,140.9,140.86,7.0988]
[1728499236599,17.7382,140.94,140.85,34.9701757]
[1728499236819,7.0968,140.91,140.87,7.0987]
[1728499237296,7.0965,140.92,140.88,8.51759492]
[1728499238514,15.4149,140.96,140.88,84.97904169]
[1728499238838,7.0957,140.93,140.89,8.51647034]
[1728499239222,7.0953,140.94,140.9,7.0971]
[1728499239522,7.0949,140.95,140.91,8.51592611]
[1728499240428,7.0949,140.95,140.91,1.41922611]
[1728499240596,17.7334,140.98,140.92,7.0962]
[1728499240804,20.0,140.99,140.93,1.41898035]
[1728499241134,7.0947,140.95,140.91,8.51553979]
[1728499243143,7.0943,140.96,140.92,7.0961]
[1728499243326,7.0943,140.96,140.93,1.41892416]
[1728499243724,7.0943,140.96,140.92,7.0961]
[1728499244118,7.0943,140.96,140.93,1.41894608]
[1728499244438,7.0943,140.96,140.92,7.0961]
[1728499244643,7.0943,140.96,140.93,1.418944]
[1728499244937,7.0938,140.97,140.93,8.514444]
[1728499245320,7.0933,140.98,140.94,7.0949]
[1728499245527,7.0929,140.99,140.95,8.51343945]
[1728499245924,7.0923,141.0,140.96,7.094]
[1728499246168,7.0923,141.0,140.97,1.41855058]
[1728499247123,7.0927,140.99,140.97,1.41858402]
[1728499247334,7.0927,140.99,140.96,17.7354]
[1728499247537,7.0936,140.98,140.94,7.0951]
[1728499247837,7.0944,140.96,140.92,7.0961]
[1728499249148,7.0929,140.99,140.95,7.0946]
[1728499249321,7.0932,140.98,140.95,8.51331308]
[1728499249922,7.0932,140.98,140.95,1.41871308]
[1728499251250,7.0938,140.97,140.94,17.7377]
[1728499251448,7.0938,140.97,140.95,1.41874604]
[1728499252150,61.756764,141.02,140.95,1.41874604]
[1728499252330,7.0924,141.0,140.96,7.0938]
[1728499252531,7.0924,141.0,140.97,1.41855361]
[1728499252732,37.7289,141.02,140.97,8.51215361]
[1728499252733,7.0918,141.01,140.97,8.51215361]
[1728499253436,20.0,141.02,140.98,1.41839516]
[1728499253767,7.0922,141.0,140.97,7.0936]
[1728499253928,7.0922,141.0,140.96,24.8294]
[1728499254752,7.093,140.99,140.96,17.7354]
[1728499255266,7.093,140.99,140.96,24.8295]
[1728499255751,20.0,141.02,140.96,24.8295]
[1728499255957,7.0923,141.0,140.96,24.8295]
[1728499256457,20.0,141.02,140.97,1.41845147]
[1728499256767,20.0,141.02,140.98,7.0931]
[1728499256768,27.0914,141.02,140.98,7.0931]
[1728499257061,7.0922,141.0,140.97,7.0935]
[1728499257635,20.0,141.02,140.98,8.51139549]
[1728499257636,27.0914,141.02,140.98,8.51139549]
[1728499257844,7.0914,141.02,140.98,8.51139549]
[1728499258232,7.0914,141.02,140.98,26.24429549]
[1728499259255,7.0917,141.01,140.98,26.24429549]
[1728499259450,7.0922,141.0,140.99,1.41831257]
[1728499259645,7.0922,141.0,140.96,77.094]
[1728499259958,7.0922,141.0,140.97,1.41839251]
[1728499260657,7.0927,140.99,140.96,7.094]
[1728499260858,7.0922,141.0,140.97,1.41846638]
[1728499261534,37.7256,141.04,140.95,34.1775]
[1728499261737,7.0932,140.98,140.95,17.7356]
[1728499261969,7.0942,140.96,140.92,94.8356]
[1728499262259,7.0949,140.95,140.91,29.5385]
[1728499262835,7.0944,140.96,140.92,7.096]
[1728499263454,7.0949,140.95,140.91,47.2802]
[1728499263959,7.0952,140.94,140.91,40.1837]
[1728499264465,7.0952,140.94,140.91,22.4419]
[1728499264837,20.0,140.98,140.91,22.4419]
[1728499265042,17.7345,140.97,140.88,17.7445]
[1728499265239,17.7372,140.95,140.88,17.7445]
[1728499265667,7.0963,140.92,140.88,24.8427]
[1728499266664,7.0963,140.92,140.89,1.41920357]
[1728499266964,37.7338,140.98,140.9,87.7424]
[1728499267261,15.0249,141.0,140.9,87.7424]
[1728499267262,7.0937,140.97,140.93,7.0954]
[1728499267461,7.0942,140.96,140.92,24.8362]
[1728499270350,20.0,140.99,140.93,1.41879944]
[1728499270546,7.0933,140.98,140.94,7.0951]
[1728499270761,7.0933,140.98,140.95,1.41865831]
[1728499271848,20.0,140.99,140.92,87.7401]
[1728499272070,7.095,140.95,140.91,7.0965]
[1728499272472,7.095,140.95,140.92,1.41889669]
[1728499272775,37.7321,140.99,140.92,8.51509669]
[1728499272955,7.0947,140.95,140.91,24.8381]
[1728499273155,7.0943,140.96,140.92,8.51501038]
[1728499275663,7.0943,140.96,140.92,7.0961]
[1728499276152,7.0947,140.95,140.92,7.0961]
[1728499276572,7.0947,140.95,140.93,1.41890737]
[1728499277152,7.0947,140.95,140.92,7.0961]
[1728499278080,7.0947,140.95,140.93,1.41889462]
[1728499278975,7.0947,140.95,140.92,7.0961]
[1728499281875,7.094,140.97,140.93,8.51448675]
[1728499282077,7.0943,140.96,140.92,7.096]
[1728499282273,7.0943,140.96,140.92,10.97739906]
[1728499282678,7.0943,140.96,140.92,7.096]
[1728499283480,7.0947,140.95,140.91,24.8381]
[1728499283875,7.0947,140.95,140.92,3.88237139]
[1728499285485,7.0957,140.93,140.92,3.88237139]
[1728499285663,7.0957,140.93,140.9,3.88370878]
[1728499285858,1.067006,140.96,140.91,3.88370878]
[1728499286058,7.0976,140.9,140.89,3.88426539]
[1728499286288,7.0976,140.9,140.88,3.88426539]
[1728499286486,7.0969,140.91,140.89,3.88426539]
[1728499286786,7.0969,140.91,140.87,29.5405]
[1728499286974,7.0969,140.91,140.88,3.88423743]
[1728499287279,7.0969,140.91,140.87,47.2873]
[1728499287587,7.0969,140.91,140.88,3.88374058]
[1728499287893,7.0963,140.92,140.89,1.41930242]
[1728499288066,7.0963,140.92,140.89,3.88360508]
[1728499288261,7.0963,140.92,140.9,1.41925688]
[1728499288472,7.0963,140.92,140.9,1.41925479]
[1728499288876,7.0963,140.92,140.89,3.88297855]
[1728499289064,7.0963,140.92,140.88,7.0981]
[1728499289388,18.803506,140.96,140.88,7.0981]
[1728499289389,1.067006,140.96,140.9,13.55167619]
[1728499289565,7.0948,140.95,140.91,8.51538776]
[1728499289764,1.067006,140.97,140.91,1.41898776]
[1728499289971,7.0943,140.96,140.92,7.0959]
[1728499290269,7.0943,140.96,140.93,1.41892939]
[1728499292065,7.0943,140.96,140.93,8.51452939]
[1728499292385,7.0943,140.96,140.93,1.41892939]
[1728499292584,7.0943,140.96,140.92,10.97819611]
[1728499293171,7.0952,140.94,140.92,3.88229611]
[1728499293497,7.0952,140.94,140.91,24.8383]
[1728499294002,21.067006,140.98,140.91,24.8383]
[1728499294176,7.0948,140.95,140.91,24.8383]
[1728499294373,7.0955,140.94,140.92,3.88261671]
[1728499294898,7.0962,140.92,140.89,17.7443]
[1728499295088,7.0962,140.92,140.9,3.88309122]
[1728499295664,7.0962,140.92,140.89,17.7443]
[1728499296301,7.0962,140.92,140.9,3.88312703]
[1728499296593,1.067006,140.96,140.9,5.30232361]
[1728499296594,7.0958,140.93,140.9,5.30232361]
[1728499297800,7.0958,140.93,140.9,3.88312703]
[1728499298174,7.0958,140.93,140.9,5.30230574]
[1728499298729,7.0958,140.93,140.9,3.88312703]
[1728499299296,7.0958,140.93,140.9,5.30230322]
[1728499299485,7.0958,140.93,140.89,24.8417]
[1728499299671,7.0958,140.93,140.9,3.88263461]
[1728499299987,7.0958,140.93,140.91,1.419172]
[1728499300174,7.0953,140.94,140.91,1.419172]
[1728499300377,7.0953,140.94,140.9,10.97983461]
[1728499301508,7.095,140.95,140.91,7.0963]
[1728499301713,7.0952,140.94,140.91,7.0963]
[1728499302194,1.067006,140.98,140.93,7.0953]
[1728499302397,20.0,140.99,140.93,7.0953]
[1728499302398,8.160806,140.97,140.93,7.0953]
[1728499302607,7.0934,140.98,140.94,8.51378015]
[1728499303286,7.0937,140.97,140.94,1.41878015]
[1728499305397,7.0937,140.97,140.93,7.0955]
[1728499305904,7.095,140.95,140.92,17.7401]
[1728499306107,7.095,140.95,140.93,3.88398]
[1728499306310,7.095,140.95,140.92,17.7401]
[1728499306490,7.095,140.95,140.93,3.88391704]
[1728499306690,7.095,140.95,140.92,24.8362]
[1728499306893,7.095,140.95,140.93,3.88392161]
[1728499307219,7.095,140.95,140.89,0.25098]
[1728499307416,7.095,140.95,140.9,3.88447288]
[1728499307614,7.095,140.95,140.91,3.88447288]
[1728499307914,7.095,140.95,140.92,3.88447288]
[1728499308213,7.095,140.95,140.93,3.88447288]
[1728499308419,7.095,140.95,140.92,17.7401]
[1728499308741,7.095,140.95,140.93,3.8843682]
[1728499308889,7.095,140.95,140.92,17.7401]
[1728499309090,7.095,140.95,140.93,3.88434072]
[1728499309308,7.0945,140.96,140.93,1.41892106]
[1728499310315,17.733,140.98,140.93,1.41892106]
[1728499310316,7.0935,140.98,140.93,1.41892106]
[1728499310622,7.0935,140.98,140.94,10.97886104]
[1728499311211,7.0935,140.98,140.94,7.095]
[1728499311690,7.0935,140.98,140.94,10.97903285]
[1728499312399,7.0935,140.98,140.94,7.095]
[1728499312797,16.091906,141.0,140.97,7.0935]
[1728499312798,7.0922,141.0,140.97,7.0935]
[1728499313009,17.259206,141.03,140.95,23.0387171]
[1728499313010,7.093,140.99,140.96,3.88388926]
[1728499313207,7.093,140.99,140.95,24.8308]
[1728499313501,7.093,140.99,140.96,3.88257503]
[1728499313701,7.093,140.99,140.95,24.8308]
[1728499313913,7.0923,141.0,140.96,12.3949742]
[1728499314124,7.0923,141.0,140.96,8.51249282]
[1728499314309,7.0923,141.0,140.96,12.39384007]
[1728499314721,7.0923,141.0,140.97,7.0936]
[1728499314907,7.0923,141.0,140.98,1.41846233]
[1728499315926,7.0923,141.0,140.97,1.41846232]
[1728499316538,7.0921,141.01,140.97,8.51196232]
[1728499316904,7.0922,141.0,140.97,8.51196232]
[1728499317104,7.0922,141.0,140.97,1.41846232]
[1728499317309,7.0922,141.0,140.96,7.0939]
[1728499317509,7.0922,141.0,140.96,10.9752571]
[1728499318227,7.0922,141.0,140.96,10.97237653]
[1728499318528,7.0922,141.0,140.96,7.0939]
[1728499318910,7.0932,140.98,140.95,17.7362]
[1728499319425,7.0932,140.98,140.95,21.61396476]
[1728499319929,7.0932,140.98,140.95,17.7362]
[1728499320431,1.067006,141.01,140.96,1.41862554]
[1728499320602,7.0928,140.99,140.96,1.41862554]
[1728499321626,7.0928,140.99,140.95,24.8306]
[1728499322029,7.0928,140.99,140.96,1.41859303]
[1728499323429,7.0928,140.99,140.95,24.8306]
[1728499323929,7.0928,140.99,140.96,1.41859081]
[1728499324112,7.0928,140.99,140.96,8.51259081]
[1728499324312,1.067006,141.01,140.96,8.51259081]
[1728499324313,7.0924,141.0,140.96,8.51259081]
[1728499325928,7.0924,141.0,140.96,7.094]
[1728499326624,18.795106,141.02,140.95,17.7362]
[1728499326838,7.0933,140.98,140.95,17.7362]
[1728499327212,7.0933,140.98,140.96,1.41861489]
[1728499327820,7.0933,140.98,140.95,24.8308]
[1728499332218,7.0933,140.98,140.96,1.41861731]
[1728499332418,7.0933,140.98,140.95,24.8308]
[1728499333023,7.0933,140.98,140.96,7.107]
[1728499333332,7.0933,140.98,140.95,24.8308]
[1728499334125,7.0928,140.99,140.96,1.41861902]
[1728499334339,7.0928,140.99,140.95,24.8307]
[1728499335215,7.0928,140.99,140.96,1.41861073]
[1728499335517,7.0928,140.99,140.95,24.8307]
[1728499335914,7.0928,140.99,140.96,1.41860883]
[1728499337332,7.0928,140.99,140.95,24.8307]
[1728499337716,7.0928,140.99,140.96,1.41860835]
[1728499338433,7.0924,141.0,140.96,8.51270835]
[1728499338839,16.1922,141.03,140.98,13.54354586]
[1728499339025,7.0903,141.04,141.0,7.092]
[1728499339221,7.0903,141.04,141.01,1.41805571]
[1728499339736,7.0903,141.04,141.01,8.50965571]
[1728499340235,7.0897,141.05,141.01,8.50965571]
[1728499340644,17.631806,141.07,141.01,8.50965571]
[1728499340645,16.459706,141.1,141.03,13.54354586]
[1728499340817,1.067006,141.12,141.07,13.54354586]
[1728499341024,39.022,141.15,141.07,13.54354586]
[1728499341025,7.085,141.15,141.1,7.087]
[1728499341240,21.7997,141.17,141.09,24.806]
[1728499341241,7.0853,141.14,141.09,24.806]
[1728499341439,7.0861,141.12,141.07,70.0]
[1728499341615,1.067006,141.11,141.05,23.0533]
[1728499341821,21.31,141.13,141.03,100.937]
[1728499342120,7.0887,141.07,141.03,23.8464]
[1728499342332,7.0897,141.05,141.01,15.9638]
[1728499342940,23.776884,141.09,141.0,6.4054]
[1728499343234,7.0908,141.03,141.0,6.4054]
[1728499343438,6.5908,141.03,141.0,6.4054]
[1728499343958,18.788506,141.08,140.98,7.093]
[1728499343959,1.067006,141.07,140.98,7.093]
[1728499344239,1.067006,141.07,140.99,8.51078518]
[1728499344240,7.0903,141.04,140.99,8.51078518]
[1728499344540,7.0903,141.04,140.99,7.0926]
[1728499344939,7.0907,141.03,140.99,7.0926]
[1728499345643,7.0912,141.02,140.98,10.95874157]
[1728499345830,7.0912,141.02,140.98,7.093]
[1728499346828,7.0921,141.01,140.97,17.7338]
[1728499347137,7.0913,141.02,140.98,1.41837672]
[1728499348043,7.0913,141.02,140.97,24.8272]
[1728499348542,7.0918,141.01,140.97,17.7338]
[1728499348749,7.0918,141.01,140.96,7.094]
[1728499348750,7.0923,141.0,140.96,7.094]
[1728499348922,7.0927,140.99,140.95,7.0945]
[1728499349118,7.0927,140.99,140.94,17.7374]
[1728499349119,1.067006,140.98,140.94,3.86852525]
[1728499349338,7.0941,140.97,140.92,10.10024063]
[1728499349538,7.0941,140.97,140.93,8.5141789]
[1728499349847,7.0933,140.98,140.93,8.5141789]
[1728499350043,1.067006,141.01,140.93,7.0954]
[1728499350225,7.0942,140.96,140.92,13.327]
[1728499350741,7.0938,140.97,140.93,1.41882202]
[1728499351531,7.0938,140.97,140.92,13.327]
[1728499351720,7.0942,140.96,140.92,13.327]
[1728499352045,7.0947,140.95,140.91,17.7409]
[1728499352244,7.0958,140.93,140.89,28.8717]
[1728499352422,7.0958,140.93,140.88,24.8427]
[1728499352625,7.0958,140.93,140.88,17.7446]
[1728499352838,7.0953,140.94,140.89,8.51672343]
[1728499353237,7.0953,140.94,140.9,7.0971]
[1728499353633,7.0953,140.94,140.89,7.0975]
[1728499354237,7.0953,140.94,140.9,1.4191936]
[1728499354945,21.067006,140.97,140.89,7.0975]
[1728499355152,7.0957,140.93,140.89,7.0975]
[1728499357139,7.0957,140.93,140.9,1.41921368]
[1728499357455,21.067006,140.97,140.9,1.41921368]
[1728499357654,7.0953,140.94,140.9,8.51631368]
[1728499358032,7.0953,140.94,140.9,7.0971]
[1728499359041,7.0953,140.94,140.91,1.41913316]
[1728499359633,7.0943,140.96,140.91,1.41913316]
[1728499359837,7.0943,140.96,140.92,7.0961]
[1728499360149,7.0943,140.96,140.93,1.41900193]
[1728499360734,7.0947,140.95,140.91,7.0965]
[1728499361348,7.0947,140.95,140.9,24.8394]
[1728499361552,1.067006,140.94,140.87,101.29004586]
[1728499361739,7.0967,140.91,140.87,94.8447]
[1728499361928,7.0967,140.91,140.87,24.8447]
[1728499362134,7.0973,140.9,140.86,13.2559]
[1728499362329,7.0973,140.9,140.86,7.0991]
[1728499364146,7.0973,140.9,140.87,1.41948027]
[1728499365455,21.067006,140.94,140.87,1.41948027]
[1728499365632,7.0958,140.93,140.89,7.0976]
[1728499365833,7.0958,140.93,140.9,1.41923722]
[1728499366548,1.067006,140.92,140.85,87.2460757]
[1728499366736,7.0971,140.91,140.87,7.0986]
[1728499367261,1.067006,140.94,140.86,7.0991]
[1728499367262,7.0972,140.9,140.86,7.0991]
[1728499367639,18.805306,140.94,140.85,104.9944757]
[1728499367944,7.0968,140.91,140.87,7.0986]
[1728499368150,7.0968,140.91,140.88,1.41938693]
[1728499370361,7.0968,140.91,140.87,7.0986]
[1728499370759,7.0968,140.91,140.88,1.41943072]
[1728499370940,7.0968,140.91,140.87,7.0986]
[1728499371352,7.0973,140.9,140.86,7.099]
[1728499372155,1.067006,140.93,140.85,104.9944757]
[1728499372156,7.0978,140.89,140.85,112.0936757]
[1728499372358,7.0978,140.89,140.86,7.0991]
[1728499372568,7.0973,140.9,140.86,7.0991]
[1728499373058,7.0973,140.9,140.87,8.51806551]
[1728499373368,7.0973,140.9,140.87,7.0986]
[1728499373561,7.0973,140.9,140.88,1.41946346]
[1728499375569,7.0963,140.92,140.88,1.41946346]
[1728499375758,7.0963,140.92,140.88,8.51756346]
[1728499375953,7.0967,140.91,140.87,17.7466]
[1728499376267,7.0967,140.91,140.87,24.8452]
[1728499377464,7.0963,140.92,140.88,7.0982]
[1728499378273,7.0968,140.91,140.87,24.8451]
[1728499378464,7.0968,140.91,140.88,1.41936097]
[1728499379175,7.0964,140.92,140.88,8.51746097]
[1728499379373,7.0967,140.91,140.88,7.0981]
[1728499379562,7.0963,140.92,140.88,8.51746045]
[1728499379874,7.0963,140.92,140.88,7.0981]
[1728499380046,7.0967,140.91,140.88,8.51746368]
[1728499380964,7.0967,140.91,140.88,7.0981]
[1728499381173,7.0967,140.91,140.89,1.41935813]
[1728499381380,7.0967,140.91,140.88,7.0981]
[1728499382084,7.0967,140.91,140.89,1.41936125]
[1728499382454,7.0967,140.91,140.88,7.0981]
[1728499382772,1.067006,140.93,140.89,1.41936111]
[1728499382964,7.0964,140.92,140.88,7.0981]
[1728499383171,7.0964,140.92,140.89,1.41935498]
[1728499383555,20.0,140.94,140.9,1.4193581]
[1728499383556,8.162306,140.94,140.9,1.4193581]
[1728499383871,7.0953,140.94,140.9,8.5163581]
[1728499386485,7.0959,140.93,140.9,1.4193581]
[1728499386770,7.0959,140.93,140.89,24.8418]
[1728499391081,7.0959,140.93,140.9,1.41916691]
[1728499391657,7.0959,140.93,140.9,7.0972]
[1728499391857,7.0959,140.93,140.91,1.41916659]
[1728499392578,21.067006,140.96,140.91,1.41916659]
[1728499392759,1.067006,140.96,140.91,8.51576659]
[1728499392962,7.095,140.95,140.91,8.51576659]
[1728499393267,7.095,140.95,140.92,1.41906701]
[1728499396684,7.0939,140.97,140.93,3.88418832]
[1728499396864,7.0943,140.96,140.94,1.41888742]
[1728499398071,7.0943,140.96,140.93,24.8348]
[1728499398468,7.0943,140.96,140.94,1.41886481]
[1728499399290,21.067006,141.01,140.95,7.0946]
[1728499399477,8.159206,141.0,140.96,8.5125172]
[1728499399865,7.0922,141.0,140.96,8.5125172]
[1728499402379,7.0927,140.99,140.96,8.5125172]
[1728499404282,7.0918,141.01,140.97,7.0936]
[1728499404596,7.0918,141.01,140.98,1.41845335]
[1728499405458,7.0918,141.01,140.97,17.7341]
[1728499405658,7.0918,141.01,140.97,24.8276]
[1728499405865,7.0918,141.01,140.98,1.41843202]
[1728499406087,7.0918,141.01,140.98,8.51153202]
[1728499406875,7.0918,141.01,140.98,1.41843202]
[1728499407071,1.067006,141.03,140.97,24.8276]
[1728499407279,7.0937,140.97,140.94,17.7373]
[1728499407463,7.0937,140.97,140.94,30.12911077]
[1728499407864,7.0933,140.98,140.94,30.12911077]
[1728499409767,7.0937,140.97,140.94,23.03391077]
[1728499410088,7.0937,140.97,140.94,28.33198499]
[1728499410279,7.0947,140.95,140.94,5.29661077]
[1728499410669,27.0947,140.95,140.94,5.29661077]
[1728499411074,7.0967,140.91,140.88,23.04497222]
[1728499411382,7.0967,140.91,140.87,7.0986]
[1728499411795,7.0967,140.91,140.87,12.39933033]
[1728499412572,7.0967,140.91,140.87,5.30073033]
[1728499412991,7.0978,140.89,140.87,5.30073033]
[1728499413205,7.414306,140.92,140.85,0.8481757]
[1728499413376,7.0987,140.87,140.85,0.8481757]
[1728499413701,8.166206,140.86,140.85,0.8481757]
[1728499413890,7.0992,140.86,140.85,0.8481757]
[1728499414092,7.0988,140.87,140.85,0.8481757]
[1728499414599,8.166206,140.86,140.85,0.8481757]
[1728499415390,67.25859,140.86,140.85,0.8481757]
[1728499415570,67.50957,140.86,140.85,0.8481757]
[1728499415774,67.25859,140.86,140.85,0.8481757]
[1728499416978,67.50957,140.86,140.85,0.8481757]
[1728499417301,7.1018,140.81,140.77,16.27147553]
[1728499417476,7.1018,140.81,140.77,12.40130268]
[1728499417799,7.1025,140.8,140.77,5.29770268]
[1728499418473,7.1018,140.81,140.77,5.29770268]
[1728499418876,6.1225,140.85,140.77,6.71822264]
[1728499418877,1.067006,140.84,140.77,6.71822264]
[1728499419176,1.067006,140.84,140.8,7.102]
[1728499419376,8.167406,140.84,140.8,7.102]
[1728499419589,7.1007,140.83,140.79,7.1026]
[1728499419773,7.1007,140.83,140.8,1.42021946]
[1728499419986,8.167406,140.84,140.8,1.42021946]
[1728499420183,7.1004,140.84,140.79,7.1026]
[1728499420383,7.1008,140.83,140.79,7.1026]
[1728499421273,1.067006,140.85,140.8,19.17531564]
[1728499421480,1.067006,140.86,140.82,7.101]
[1728499421687,8.166106,140.87,140.82,8.52103946]
[1728499421882,8.166106,140.87,140.8,17.7551]
[1728499421883,7.0998,140.85,140.8,17.7551]
[1728499422082,7.0998,140.85,140.8,24.8572]
[1728499422484,1.067006,140.87,140.81,1.42009462]
[1728499422688,7.0987,140.87,140.82,7.1008]
[1728499422899,7.0987,140.87,140.83,1.4199224]
[1728499423097,8.165306,140.88,140.84,7.1001]
[1728499423494,7.0983,140.88,140.84,7.1001]
[1728499423991,7.0983,140.88,140.82,17.7526]